[Event "Early-Titled-Tuesday-Blitz-March-05-2024"]
[Site "Chess.com"]
[Date "2024.03.05"]
[Round "9"]
[White "karinachess1"]
[Black "AlexPapasimakopoulos"]
[Result "0-1"]
[WhiteElo "2593"]
[BlackElo "2748"]
[TimeControl "180+1"]
[EndTime "9:46:39 PST"]
[Termination "AlexPapasimakopoulos won by resignation"]

1. d4 {[%clk 0:03:00.9]} 1... e6 {[%clk 0:02:54.3]} 2. c4 {[%clk 0:03:00.1]}
2... d5 {[%clk 0:02:53.7]} 3. Nc3 {[%clk 0:02:59.4]} 3... a6 {[%clk 0:02:53.8]}
4. cxd5 {[%clk 0:02:59]} 4... exd5 {[%clk 0:02:54.7]} 5. Bf4 {[%clk 0:02:58.8]}
5... c6 {[%clk 0:02:54.4]} 6. e3 {[%clk 0:02:59.1]} 6... Bd6 {[%clk 0:02:55.1]}
7. Bxd6 {[%clk 0:02:54.6]} 7... Qxd6 {[%clk 0:02:56]} 8. Bd3 {[%clk 0:02:55]}
8... Ne7 {[%clk 0:02:55.4]} 9. Qc2 {[%clk 0:02:53.7]} 9... Qf6 {[%clk
0:02:55.4]} 10. Nf3 {[%clk 0:02:47.1]} 10... Bf5 {[%clk 0:02:53.2]} 11. Bxf5
{[%clk 0:02:27.6]} 11... Qxf5 {[%clk 0:02:54.1]} 12. Qb3 {[%clk 0:02:21.8]}
12... Qc8 {[%clk 0:02:47.7]} 13. Rc1 {[%clk 0:02:18.1]} 13... O-O {[%clk
0:02:42.7]} 14. Na4 {[%clk 0:02:04.7]} 14... Nd7 {[%clk 0:02:42.4]} 15. Nb6
{[%clk 0:02:01.9]} 15... Nxb6 {[%clk 0:02:42.4]} 16. Qxb6 {[%clk 0:02:02.8]}
16... Nf5 {[%clk 0:02:34.6]} 17. O-O {[%clk 0:01:59]} 17... Nd6 {[%clk
0:02:34.3]} 18. Ne5 {[%clk 0:01:47.2]} 18... Qe6 {[%clk 0:02:31.2]} 19. Qb3
{[%clk 0:01:38.7]} 19... h5 {[%clk 0:02:25.1]} 20. Nd3 {[%clk 0:01:24.2]} 20...
h4 {[%clk 0:02:22.8]} 21. h3 {[%clk 0:01:24.5]} 21... g5 {[%clk 0:02:20.6]} 22.
Nc5 {[%clk 0:01:13.8]} 22... Qe7 {[%clk 0:02:20.6]} 23. Qd3 {[%clk 0:01:10.4]}
23... Kg7 {[%clk 0:02:12.4]} 24. Rce1 {[%clk 0:01:03]} 24... Rae8 {[%clk
0:02:11.6]} 25. f3 {[%clk 0:00:56.8]} 25... f5 {[%clk 0:02:09.3]} 26. b3 {[%clk
0:00:54.9]} 26... Rf6 {[%clk 0:01:50]} 27. Qd1 {[%clk 0:00:52.4]} 27... Nf7
{[%clk 0:01:45.8]} 28. f4 {[%clk 0:00:47]} 28... Rg6 {[%clk 0:01:31.2]} 29. Nd3
{[%clk 0:00:47.2]} 29... Qe4 {[%clk 0:01:27]} 30. Nf2 {[%clk 0:00:40.3]} 30...
Qe7 {[%clk 0:01:25.8]} 31. Nd3 {[%clk 0:00:40.5]} 31... g4 {[%clk 0:01:23.1]}
32. hxg4 {[%clk 0:00:37.6]} 32... Rxg4 {[%clk 0:01:22]} 33. Ne5 {[%clk
0:00:32.8]} 33... Nxe5 {[%clk 0:01:21.2]} 34. fxe5 {[%clk 0:00:33.7]} 34... Qg5
{[%clk 0:01:21.3]} 35. Qf3 {[%clk 0:00:31.3]} 35... Kg6 {[%clk 0:01:18.1]} 36.
Rf2 {[%clk 0:00:27.9]} 36... Rh8 {[%clk 0:01:03.6]} 37. Ref1 {[%clk 0:00:26.4]}
37... h3 {[%clk 0:00:57.3]} 38. Qe2 {[%clk 0:00:15.6]} 38... Rg3 {[%clk
0:00:53.9]} 39. e4 {[%clk 0:00:09.7]} 39... dxe4 {[%clk 0:00:50.2]} 40. e6
{[%clk 0:00:06.2]} 40... hxg2 {[%clk 0:00:44.2]} 41. Rxg2 {[%clk 0:00:05.7]}
41... Rxg2+ {[%clk 0:00:44.2]} 42. Qxg2 {[%clk 0:00:06.6]} 42... Qxg2+ {[%clk
0:00:44.3]} 43. Kxg2 {[%clk 0:00:07.5]} 43... Kf6 {[%clk 0:00:44.1]} 44. d5
{[%clk 0:00:02.4]} 44... cxd5 {[%clk 0:00:43.8]} 45. Rc1 {[%clk 0:00:03.3]}
45... Rh7 {[%clk 0:00:41.8]} 46. Rc5 {[%clk 0:00:01.9]} 46... Kxe6 {[%clk
0:00:41.9]} 47. Kg3 {[%clk 0:00:01.7]} 47... Ke5 {[%clk 0:00:41.9]} 48. Rc8
{[%clk 0:00:01.4]} 48... f4+ {[%clk 0:00:42.2]} 49. Kf2 {[%clk 0:00:01.7]} 49...
Rh2+ {[%clk 0:00:42.8]} 50. Kg1 {[%clk 0:00:01.9]} 50... Rxa2 {[%clk 0:00:43.7]}
51. Rc2 {[%clk 0:00:01.8]} 0-1

[Event "Early-Titled-Tuesday-Blitz-March-05-2024"]
[Site "Chess.com"]
[Date "2024.03.05"]
[Round "9"]
[White "JaackCamel"]
[Black "pfalcon1949"]
[Result "0-1"]
[WhiteElo "2222"]
[BlackElo "1956"]
[TimeControl "180+1"]
[EndTime "9:46:39 PST"]
[Termination "pfalcon1949 won by checkmate"]

1. d4 {[%clk 0:02:57.1]} 1... Nf6 {[%clk 0:02:58.3]} 2. c4 {[%clk 0:02:56.6]}
2... c5 {[%clk 0:02:58]} 3. d5 {[%clk 0:02:55.8]} 3... b5 {[%clk 0:02:57.8]} 4.
cxb5 {[%clk 0:02:55]} 4... a6 {[%clk 0:02:58.3]} 5. bxa6 {[%clk 0:02:54.6]} 5...
g6 {[%clk 0:02:58.5]} 6. Nc3 {[%clk 0:02:54.2]} 6... Bg7 {[%clk 0:02:59]} 7. e4
{[%clk 0:02:53.9]} 7... O-O {[%clk 0:02:58.9]} 8. Nf3 {[%clk 0:02:53.6]} 8...
Qa5 {[%clk 0:02:57.7]} 9. Bd2 {[%clk 0:02:51.2]} 9... Bxa6 {[%clk 0:02:57]} 10.
Be2 {[%clk 0:02:43.7]} 10... Bxe2 {[%clk 0:02:54.1]} 11. Qxe2 {[%clk 0:02:41.8]}
11... Qa6 {[%clk 0:02:48.5]} 12. a4 {[%clk 0:02:37.7]} 12... d6 {[%clk
0:02:46.3]} 13. Qxa6 {[%clk 0:02:20]} 13... Nxa6 {[%clk 0:02:44.7]} 14. Ke2
{[%clk 0:02:14.6]} 14... Nb4 {[%clk 0:02:44.8]} 15. Rhc1 {[%clk 0:02:04.4]}
15... Rfb8 {[%clk 0:02:43.5]} 16. Bg5 {[%clk 0:01:51.9]} 16... h6 {[%clk
0:02:41]} 17. Be3 {[%clk 0:01:45.2]} 17... Ng4 {[%clk 0:02:34.9]} 18. Nd2 {[%clk
0:01:44.3]} 18... Nxe3 {[%clk 0:02:32.3]} 19. Kxe3 {[%clk 0:01:42.5]} 19... Bd4+
{[%clk 0:02:30]} 20. Ke2 {[%clk 0:01:41.7]} 20... Kg7 {[%clk 0:02:27.4]} 21. f3
{[%clk 0:01:39.9]} 21... f5 {[%clk 0:02:22.7]} 22. exf5 {[%clk 0:01:35.4]} 22...
gxf5 {[%clk 0:02:21.5]} 23. a5 {[%clk 0:01:04.8]} 23... Bxc3 {[%clk 0:02:18]}
24. bxc3 {[%clk 0:00:59.4]} 24... Nxd5 {[%clk 0:02:18.5]} 25. Ra3 {[%clk
0:00:47.1]} 25... Ra6 {[%clk 0:02:17.2]} 26. g3 {[%clk 0:00:44]} 26... Kf6
{[%clk 0:02:16.4]} 27. Nc4 {[%clk 0:00:40.2]} 27... Nc7 {[%clk 0:01:57.8]} 28.
Ne3 {[%clk 0:00:27.6]} 28... e6 {[%clk 0:01:55.8]} 29. Rd1 {[%clk 0:00:27.1]}
29... Rb2+ {[%clk 0:01:52.1]} 30. Kf1 {[%clk 0:00:24]} 30... Rxh2 {[%clk
0:01:49.9]} 31. Nc4 {[%clk 0:00:22.1]} 31... Rh1+ {[%clk 0:01:48.4]} 32. Ke2
{[%clk 0:00:22.2]} 32... Rxd1 {[%clk 0:01:49.3]} 33. Kxd1 {[%clk 0:00:22.5]}
33... Nd5 {[%clk 0:01:46.7]} 34. Kd2 {[%clk 0:00:20.5]} 34... h5 {[%clk
0:01:46]} 35. Rb3 {[%clk 0:00:20.3]} 35... Ra7 {[%clk 0:01:32.8]} 36. Rb8 {[%clk
0:00:18.1]} 36... Ke7 {[%clk 0:01:29.8]} 37. Rh8 {[%clk 0:00:17.1]} 37... f4
{[%clk 0:01:28.3]} 38. Rh7+ {[%clk 0:00:16.9]} 38... Kf6 {[%clk 0:01:27.5]} 39.
Rxa7 {[%clk 0:00:16.9]} 39... fxg3 {[%clk 0:01:27.5]} 40. Nxd6 {[%clk
0:00:14.5]} 40... g2 {[%clk 0:01:18.3]} 41. Ne4+ {[%clk 0:00:13.4]} 41... Kg6
{[%clk 0:01:13.9]} 42. Ra8 {[%clk 0:00:13.7]} 42... Kg7 {[%clk 0:01:09]} 43.
Ra7+ {[%clk 0:00:13.9]} 43... Kh6 {[%clk 0:01:04.9]} 44. Ra8 {[%clk 0:00:12.9]}
44... Nf6 {[%clk 0:01:04.1]} 45. Nxf6 {[%clk 0:00:12]} 45... g1=Q {[%clk
0:01:03.8]} 46. Ne4 {[%clk 0:00:11.7]} 46... Qg2+ {[%clk 0:01:02.9]} 47. Ke3
{[%clk 0:00:11.4]} 47... Qg1+ {[%clk 0:01:02.7]} 48. Kf4 {[%clk 0:00:10.6]}
48... Qc1+ {[%clk 0:01:00.9]} 49. Ke5 {[%clk 0:00:10.5]} 49... Qe3 {[%clk
0:00:56.1]} 50. Rf8 {[%clk 0:00:09.9]} 50... Kg7 {[%clk 0:00:51.9]} 51. Re8
{[%clk 0:00:07.9]} 51... Qxf3 {[%clk 0:00:50.9]} 52. Rd8 {[%clk 0:00:05.7]}
52... Qf5+ {[%clk 0:00:50.1]} 53. Kd6 {[%clk 0:00:05.1]} 53... Qxe4 {[%clk
0:00:49.9]} 54. Rd7+ {[%clk 0:00:05.3]} 54... Kf6 {[%clk 0:00:49.9]} 55. a6
{[%clk 0:00:03.8]} 55... Qd5+ {[%clk 0:00:50.3]} 56. Kc7 {[%clk 0:00:04]} 56...
Qc4 {[%clk 0:00:48.6]} 57. a7 {[%clk 0:00:04]} 57... Qa6 {[%clk 0:00:48.4]} 58.
Kb8 {[%clk 0:00:04.2]} 58... Qb6+ {[%clk 0:00:47.8]} 59. Rb7 {[%clk 0:00:04.5]}
59... Qd8# {[%clk 0:00:47.5]} 0-1

[Event "Early-Titled-Tuesday-Blitz-March-05-2024"]
[Site "Chess.com"]
[Date "2024.03.05"]
[Round "9"]
[White "TheCavemanChess"]
[Black "ContrVersia"]
[Result "0-1"]
[WhiteElo "2714"]
[BlackElo "2865"]
[TimeControl "180+1"]
[EndTime "9:46:40 PST"]
[Termination "ContrVersia won by resignation"]

1. e4 {[%clk 0:03:00.9]} 1... c5 {[%clk 0:02:59.9]} 2. Nf3 {[%clk 0:02:59.9]}
2... a6 {[%clk 0:03:00.4]} 3. c4 {[%clk 0:02:57.3]} 3... Nc6 {[%clk 0:03:00.3]}
4. d4 {[%clk 0:02:55.3]} 4... cxd4 {[%clk 0:03:01.2]} 5. Nxd4 {[%clk 0:02:56]}
5... e5 {[%clk 0:03:01.7]} 6. Nf5 {[%clk 0:02:52.8]} 6... d6 {[%clk 0:03:01.6]}
7. Nc3 {[%clk 0:02:50.9]} 7... g6 {[%clk 0:03:01.9]} 8. Ne3 {[%clk 0:02:49]}
8... Bh6 {[%clk 0:03:02.4]} 9. Bd3 {[%clk 0:02:46]} 9... Be6 {[%clk 0:03:02.4]}
10. h4 {[%clk 0:02:45.5]} 10... Nf6 {[%clk 0:03:02.3]} 11. Ncd5 {[%clk
0:02:43.6]} 11... Bxd5 {[%clk 0:03:01.8]} 12. cxd5 {[%clk 0:02:42.2]} 12... Nd4
{[%clk 0:03:00.6]} 13. Bd2 {[%clk 0:02:36.6]} 13... b5 {[%clk 0:02:55.6]} 14.
Rc1 {[%clk 0:02:35.9]} 14... Rc8 {[%clk 0:02:52.5]} 15. g3 {[%clk 0:02:30]}
15... O-O {[%clk 0:02:51.8]} 16. Rxc8 {[%clk 0:02:18.7]} 16... Qxc8 {[%clk
0:02:52.7]} 17. h5 {[%clk 0:02:12.7]} 17... Nxh5 {[%clk 0:02:42.3]} 18. Kf1
{[%clk 0:02:13.1]} 18... Bg7 {[%clk 0:02:36.7]} 19. Bb4 {[%clk 0:02:06]} 19...
Qd7 {[%clk 0:02:30.6]} 20. Rxh5 {[%clk 0:02:04.5]} 20... gxh5 {[%clk 0:02:29.8]}
21. Qxh5 {[%clk 0:02:05.4]} 21... Qc7 {[%clk 0:02:11.3]} 22. Kg2 {[%clk
0:02:02.8]} 22... Qe7 {[%clk 0:01:56.6]} 23. Qg4 {[%clk 0:01:45.3]} 23... Kh8
{[%clk 0:01:54.9]} 24. Kg1 {[%clk 0:01:36.8]} 24... Bh6 {[%clk 0:01:54]} 25. Qh5
{[%clk 0:01:18.5]} 25... Bg7 {[%clk 0:01:34.1]} 26. Qh3 {[%clk 0:01:16.9]} 26...
Bf6 {[%clk 0:01:16.3]} 27. Nf5 {[%clk 0:00:52.3]} 27... Nxf5 {[%clk 0:01:15.9]}
28. Qxf5 {[%clk 0:00:53.2]} 28... Bg7 {[%clk 0:01:01.7]} 29. Kg2 {[%clk
0:00:53.4]} 29... Qc7 {[%clk 0:00:59.8]} 30. Bd2 {[%clk 0:00:45.6]} 30... Kg8
{[%clk 0:00:53]} 31. Qg4 {[%clk 0:00:45.1]} 31... Qc8 {[%clk 0:00:45.6]} 32. Qd1
{[%clk 0:00:39.6]} 32... Qc5 {[%clk 0:00:45.4]} 33. Be3 {[%clk 0:00:32.8]} 33...
Qc8 {[%clk 0:00:44.8]} 34. Be2 {[%clk 0:00:32.6]} 34... f5 {[%clk 0:00:44.7]}
35. exf5 {[%clk 0:00:31.8]} 35... Qxf5 {[%clk 0:00:44.4]} 36. Bg4 {[%clk
0:00:32.1]} 36... Qe4+ {[%clk 0:00:41.7]} 37. Kg1 {[%clk 0:00:27]} 37... Kh8
{[%clk 0:00:41.4]} 38. Be6 {[%clk 0:00:24.5]} 38... Qf3 {[%clk 0:00:41.5]} 39.
Qxf3 {[%clk 0:00:13.8]} 39... Rxf3 {[%clk 0:00:42]} 40. Kg2 {[%clk 0:00:14.7]}
40... Rf8 {[%clk 0:00:39.5]} 41. Bg5 {[%clk 0:00:15.1]} 41... Bf6 {[%clk
0:00:39.6]} 42. Be3 {[%clk 0:00:15.5]} 42... Kg7 {[%clk 0:00:37.8]} 43. Kf3
{[%clk 0:00:15.9]} 43... e4+ {[%clk 0:00:36.1]} 44. Kxe4 {[%clk 0:00:15.9]}
44... Bxb2 {[%clk 0:00:36.8]} 45. f4 {[%clk 0:00:16.3]} 45... h5 {[%clk
0:00:36.8]} 46. Bb6 {[%clk 0:00:14.8]} 46... Bf6 {[%clk 0:00:35]} 47. Bc7 {[%clk
0:00:13.6]} 47... Be7 {[%clk 0:00:35.4]} 48. Bb6 {[%clk 0:00:11.6]} 48... Rb8
{[%clk 0:00:35.6]} 49. Be3 {[%clk 0:00:11.2]} 49... b4 {[%clk 0:00:34.9]} 50. f5
{[%clk 0:00:11.3]} 50... a5 {[%clk 0:00:33.6]} 51. Bd7 {[%clk 0:00:10.4]} 51...
b3 {[%clk 0:00:32.3]} 52. axb3 {[%clk 0:00:07.4]} 52... Rxb3 {[%clk 0:00:33.2]}
0-1

[Event "Early-Titled-Tuesday-Blitz-March-05-2024"]
[Site "Chess.com"]
[Date "2024.03.05"]
[Round "9"]
[White "vladgoncharov"]
[Black "Mesa_1"]
[Result "1-0"]
[WhiteElo "2640"]
[BlackElo "2497"]
[TimeControl "180+1"]
[EndTime "9:46:40 PST"]
[Termination "vladgoncharov won by checkmate"]

1. d4 {[%clk 0:03:00.9]} 1... e6 {[%clk 0:02:59.7]} 2. c4 {[%clk 0:02:56.6]}
2... Nf6 {[%clk 0:02:57]} 3. Nc3 {[%clk 0:02:55.5]} 3... Bb4 {[%clk 0:02:57.5]}
4. e3 {[%clk 0:02:55.4]} 4... O-O {[%clk 0:02:56.2]} 5. Bd3 {[%clk 0:02:55]}
5... d5 {[%clk 0:02:52.3]} 6. Ne2 {[%clk 0:02:52.9]} 6... dxc4 {[%clk
0:02:50.3]} 7. Bxc4 {[%clk 0:02:53]} 7... c5 {[%clk 0:02:51]} 8. O-O {[%clk
0:02:51]} 8... a6 {[%clk 0:02:46.4]} 9. a3 {[%clk 0:02:34.7]} 9... Bxc3 {[%clk
0:02:41.9]} 10. bxc3 {[%clk 0:02:33.1]} 10... Qc7 {[%clk 0:02:40]} 11. Bd3
{[%clk 0:02:29.9]} 11... e5 {[%clk 0:02:33.9]} 12. dxe5 {[%clk 0:02:24.1]} 12...
Qxe5 {[%clk 0:02:31.5]} 13. Rb1 {[%clk 0:02:16.1]} 13... Nc6 {[%clk 0:02:27.7]}
14. c4 {[%clk 0:02:12]} 14... Rd8 {[%clk 0:02:09.2]} 15. Qc2 {[%clk 0:02:10.9]}
15... Rxd3 {[%clk 0:02:03.1]} 16. Qxd3 {[%clk 0:02:09.8]} 16... Bf5 {[%clk
0:02:03.4]} 17. Qb3 {[%clk 0:01:54.5]} 17... Bxb1 {[%clk 0:02:02.8]} 18. Qxb1
{[%clk 0:01:48.1]} 18... Qe6 {[%clk 0:01:58.7]} 19. Nf4 {[%clk 0:01:43.9]} 19...
Qxc4 {[%clk 0:01:54.3]} 20. Qxb7 {[%clk 0:01:39.2]} 20... Rb8 {[%clk 0:01:27.5]}
21. Qxc6 {[%clk 0:01:36]} 21... h6 {[%clk 0:01:28.2]} 22. Bd2 {[%clk 0:01:19.8]}
22... Ne4 {[%clk 0:01:28.7]} 23. Ba5 {[%clk 0:01:15.3]} 23... Rb5 {[%clk
0:01:26.9]} 24. Qd7 {[%clk 0:00:47.5]} 24... Nf6 {[%clk 0:01:13.3]} 25. Qd8+
{[%clk 0:00:43.8]} 25... Kh7 {[%clk 0:01:13.8]} 26. h3 {[%clk 0:00:39.1]} 26...
Qc2 {[%clk 0:00:54]} 27. Qd2 {[%clk 0:00:28.8]} 27... Qa4 {[%clk 0:00:34.9]} 28.
Bc3 {[%clk 0:00:26.4]} 28... Ne4 {[%clk 0:00:35.4]} 29. Qc1 {[%clk 0:00:25.8]}
29... Rb3 {[%clk 0:00:33.7]} 30. Ba1 {[%clk 0:00:21.8]} 30... Rxa3 {[%clk
0:00:30.6]} 31. Nd5 {[%clk 0:00:20.4]} 31... Qa5 {[%clk 0:00:20.3]} 32. Qc2
{[%clk 0:00:14.7]} 32... f5 {[%clk 0:00:20.9]} 33. Be5 {[%clk 0:00:13.2]} 33...
Ra2 {[%clk 0:00:20.3]} 34. Qd3 {[%clk 0:00:11.6]} 34... Ra3 {[%clk 0:00:17.9]}
35. Qc4 {[%clk 0:00:10.6]} 35... Nd2 {[%clk 0:00:16.2]} 36. Qf4 {[%clk
0:00:10.2]} 36... Nxf1 {[%clk 0:00:14.6]} 37. Qxf5+ {[%clk 0:00:10.3]} 37... Kg8
{[%clk 0:00:15]} 38. Qe6+ {[%clk 0:00:09.9]} 38... Kh7 {[%clk 0:00:14.8]} 39.
Qf5+ {[%clk 0:00:10]} 39... Kg8 {[%clk 0:00:15.4]} 40. Ne7+ {[%clk 0:00:10.2]}
40... Kh8 {[%clk 0:00:15.7]} 41. Qf8+ {[%clk 0:00:10.8]} 41... Kh7 {[%clk
0:00:15.6]} 42. Qxg7# {[%clk 0:00:11.5]} 1-0

[Event "Early-Titled-Tuesday-Blitz-March-05-2024"]
[Site "Chess.com"]
[Date "2024.03.05"]
[Round "9"]
[White "Austen48"]
[Black "SahibSinghKnight"]
[Result "0-1"]
[WhiteElo "2315"]
[BlackElo "2585"]
[TimeControl "180+1"]
[EndTime "9:46:41 PST"]
[Termination "SahibSinghKnight won by resignation"]

1. d4 {[%clk 0:03:00.9]} 1... d5 {[%clk 0:02:56.9]} 2. c4 {[%clk 0:03:00.2]}
2... e6 {[%clk 0:02:56.1]} 3. Nc3 {[%clk 0:02:59.6]} 3... Be7 {[%clk 0:02:52.6]}
4. Nf3 {[%clk 0:02:55.7]} 4... Nf6 {[%clk 0:02:52.2]} 5. Bg5 {[%clk 0:02:55.4]}
5... Nbd7 {[%clk 0:02:51.3]} 6. e3 {[%clk 0:02:54.8]} 6... h6 {[%clk 0:02:49.6]}
7. Bh4 {[%clk 0:02:54.1]} 7... O-O {[%clk 0:02:47.3]} 8. cxd5 {[%clk 0:02:50.4]}
8... Nxd5 {[%clk 0:02:46.9]} 9. Bxe7 {[%clk 0:02:48.4]} 9... Qxe7 {[%clk
0:02:47.4]} 10. Bd3 {[%clk 0:02:37]} 10... b6 {[%clk 0:02:29.3]} 11. Nxd5 {[%clk
0:02:35.3]} 11... exd5 {[%clk 0:02:28.7]} 12. O-O {[%clk 0:02:35.8]} 12... Bb7
{[%clk 0:02:26.9]} 13. Rc1 {[%clk 0:02:32.6]} 13... c5 {[%clk 0:02:26.6]} 14.
Bb1 {[%clk 0:02:29.1]} 14... g6 {[%clk 0:02:03.2]} 15. b3 {[%clk 0:02:07.5]}
15... Rac8 {[%clk 0:01:50.4]} 16. Qd3 {[%clk 0:02:04.6]} 16... c4 {[%clk
0:01:45.7]} 17. Qd2 {[%clk 0:01:54.4]} 17... b5 {[%clk 0:01:38.4]} 18. Qa5
{[%clk 0:01:48.2]} 18... a6 {[%clk 0:01:33.3]} 19. h4 {[%clk 0:01:43.3]} 19...
Qd8 {[%clk 0:01:23.5]} 20. Qb4 {[%clk 0:01:37.3]} 20... a5 {[%clk 0:01:00.2]}
21. Qd6 {[%clk 0:01:15.3]} 21... Rc6 {[%clk 0:00:41.6]} 22. Qg3 {[%clk
0:00:49.6]} 22... Qc7 {[%clk 0:00:30.5]} 23. Ne5 {[%clk 0:00:41.6]} 23... Nxe5
{[%clk 0:00:19.9]} 24. dxe5 {[%clk 0:00:41.3]} 24... Re8 {[%clk 0:00:16.9]} 25.
f4 {[%clk 0:00:41.6]} 25... b4 {[%clk 0:00:15.3]} 26. Kh2 {[%clk 0:00:37.6]}
26... h5 {[%clk 0:00:14.6]} 27. Rcd1 {[%clk 0:00:30]} 27... c3 {[%clk
0:00:13.7]} 28. Bc2 {[%clk 0:00:29.5]} 28... Rb6 {[%clk 0:00:10]} 29. Rd4 {[%clk
0:00:28]} 29... Qe7 {[%clk 0:00:09.3]} 30. Rfd1 {[%clk 0:00:26.8]} 30... Rc8
{[%clk 0:00:03.2]} 31. e4 {[%clk 0:00:26]} 31... dxe4 {[%clk 0:00:04.1]} 32. Rd7
{[%clk 0:00:25.7]} 32... Qe6 {[%clk 0:00:03.1]} 33. R7d6 {[%clk 0:00:20.6]}
33... Rxd6 {[%clk 0:00:02.3]} 34. Rxd6 {[%clk 0:00:21.2]} 34... Qg4 {[%clk
0:00:03.2]} 35. Qf2 {[%clk 0:00:19]} 35... e3 {[%clk 0:00:03.2]} 36. Qg3 {[%clk
0:00:16.9]} 36... e2 {[%clk 0:00:02.5]} 37. Qxg4 {[%clk 0:00:12]} 37... hxg4
{[%clk 0:00:03.4]} 0-1

[Event "Early-Titled-Tuesday-Blitz-March-05-2024"]
[Site "Chess.com"]
[Date "2024.03.05"]
[Round "9"]
[White "IlanSchnaider"]
[Black "Practical-Play"]
[Result "1-0"]
[WhiteElo "2661"]
[BlackElo "2533"]
[TimeControl "180+1"]
[EndTime "9:46:42 PST"]
[Termination "IlanSchnaider won by checkmate"]

1. e4 {[%clk 0:03:00.9]} 1... d5 {[%clk 0:02:57.9]} 2. exd5 {[%clk 0:03:00.9]}
2... Nf6 {[%clk 0:02:57.8]} 3. d4 {[%clk 0:03:00.5]} 3... Bg4 {[%clk 0:02:58]}
4. Be2 {[%clk 0:02:59.3]} 4... Bxe2 {[%clk 0:02:58]} 5. Nxe2 {[%clk 0:02:59.2]}
5... Qxd5 {[%clk 0:02:58.3]} 6. O-O {[%clk 0:02:59]} 6... e6 {[%clk 0:02:57.1]}
7. Nbc3 {[%clk 0:02:56]} 7... Qa5 {[%clk 0:02:55.7]} 8. Qd3 {[%clk 0:02:47.7]}
8... Nc6 {[%clk 0:02:54.7]} 9. Bd2 {[%clk 0:02:42.4]} 9... O-O-O {[%clk
0:02:53.5]} 10. Qc4 {[%clk 0:02:20.2]} 10... Qh5 {[%clk 0:02:29.7]} 11. h3
{[%clk 0:02:07]} 11... Bd6 {[%clk 0:02:17.8]} 12. Nb5 {[%clk 0:01:07.3]} 12...
Be7 {[%clk 0:02:11]} 13. Bf4 {[%clk 0:00:53]} 13... Nd5 {[%clk 0:02:08.2]} 14.
Bh2 {[%clk 0:00:52.4]} 14... a6 {[%clk 0:01:57.6]} 15. a4 {[%clk 0:00:34.4]}
15... axb5 {[%clk 0:01:16]} 16. axb5 {[%clk 0:00:32.7]} 16... Nb6 {[%clk
0:01:15.5]} 17. bxc6 {[%clk 0:00:18.8]} 17... Bd6 {[%clk 0:00:51.3]} 18. cxb7+
{[%clk 0:00:16.5]} 18... Kd7 {[%clk 0:00:41]} 19. Qd3 {[%clk 0:00:11.3]} 19...
Rb8 {[%clk 0:00:36.6]} 20. Bxd6 {[%clk 0:00:11.1]} 20... cxd6 {[%clk 0:00:35.5]}
21. Ng3 {[%clk 0:00:09.8]} 21... Qd5 {[%clk 0:00:33.7]} 22. b3 {[%clk
0:00:07.4]} 22... Qxb7 {[%clk 0:00:29]} 23. c4 {[%clk 0:00:07.2]} 23... Nc8
{[%clk 0:00:19.4]} 24. Rfb1 {[%clk 0:00:06.5]} 24... Ke7 {[%clk 0:00:17.9]} 25.
Ne4 {[%clk 0:00:05.9]} 25... f5 {[%clk 0:00:15.9]} 26. Nd2 {[%clk 0:00:05.2]}
26... Na7 {[%clk 0:00:14.7]} 27. Qg3 {[%clk 0:00:05.2]} 27... g6 {[%clk
0:00:13.7]} 28. Nf3 {[%clk 0:00:05.4]} 28... Nc6 {[%clk 0:00:13.8]} 29. d5
{[%clk 0:00:04.7]} 29... Nd8 {[%clk 0:00:11.6]} 30. Re1 {[%clk 0:00:04.3]} 30...
e5 {[%clk 0:00:11.1]} 31. Nxe5 {[%clk 0:00:04.3]} 31... dxe5 {[%clk 0:00:09.3]}
32. Qxe5+ {[%clk 0:00:05.2]} 32... Kd7 {[%clk 0:00:09.4]} 33. Qxh8 {[%clk
0:00:03.7]} 33... Kc8 {[%clk 0:00:09]} 34. Re8 {[%clk 0:00:02.7]} 34... Qd7
{[%clk 0:00:09.6]} 35. Rae1 {[%clk 0:00:02]} 35... Kc7 {[%clk 0:00:09.8]} 36.
Qe5+ {[%clk 0:00:02.3]} 36... Kb7 {[%clk 0:00:10]} 37. Re7 {[%clk 0:00:02.9]}
37... Qxe7 {[%clk 0:00:08.2]} 38. Qxe7+ {[%clk 0:00:03.3]} 38... Ka6 {[%clk
0:00:09.1]} 39. Qd6+ {[%clk 0:00:03.4]} 39... Kb7 {[%clk 0:00:09.5]} 40. Re7+
{[%clk 0:00:02.9]} 40... Kc8 {[%clk 0:00:10.4]} 41. Qd7# {[%clk 0:00:02.9]} 1-0

[Event "Early-Titled-Tuesday-Blitz-March-05-2024"]
[Site "Chess.com"]
[Date "2024.03.05"]
[Round "9"]
[White "VinzentSpitzl"]
[Black "Kildepiotr"]
[Result "0-1"]
[WhiteElo "2529"]
[BlackElo "2691"]
[TimeControl "180+1"]
[EndTime "9:46:42 PST"]
[Termination "Kildepiotr won by resignation"]

1. e4 {[%clk 0:02:55]} 1... g6 {[%clk 0:03:00.3]} 2. d4 {[%clk 0:02:50.8]} 2...
Bg7 {[%clk 0:03:00.3]} 3. Nc3 {[%clk 0:02:49.8]} 3... c6 {[%clk 0:03:00.5]} 4.
h3 {[%clk 0:02:48.8]} 4... d6 {[%clk 0:03:00.3]} 5. Nge2 {[%clk 0:02:47.1]} 5...
Nd7 {[%clk 0:03:00.4]} 6. a4 {[%clk 0:02:45.7]} 6... e5 {[%clk 0:03:00.6]} 7.
Be3 {[%clk 0:02:45.7]} 7... Ngf6 {[%clk 0:03:00.5]} 8. g4 {[%clk 0:02:45.9]}
8... Qe7 {[%clk 0:02:58.4]} 9. Bg2 {[%clk 0:02:45.8]} 9... h5 {[%clk 0:02:55]}
10. g5 {[%clk 0:02:43.6]} 10... Nh7 {[%clk 0:02:55.2]} 11. Qd2 {[%clk
0:02:41.6]} 11... h4 {[%clk 0:02:46.2]} 12. f4 {[%clk 0:02:32]} 12... exf4
{[%clk 0:02:32.2]} 13. Bxf4 {[%clk 0:02:31.1]} 13... Nhf8 {[%clk 0:02:31.7]} 14.
O-O {[%clk 0:02:26.4]} 14... Ne6 {[%clk 0:02:30.4]} 15. Be3 {[%clk 0:02:26.4]}
15... O-O {[%clk 0:02:29.3]} 16. Rad1 {[%clk 0:02:06.4]} 16... Nb6 {[%clk
0:02:21.9]} 17. b3 {[%clk 0:02:06.1]} 17... Bd7 {[%clk 0:02:17.4]} 18. a5 {[%clk
0:02:05.8]} 18... Nc8 {[%clk 0:02:17.4]} 19. d5 {[%clk 0:01:59.9]} 19... Nc5
{[%clk 0:02:12.2]} 20. Qe1 {[%clk 0:01:59.9]} 20... Qd8 {[%clk 0:01:58.9]} 21.
b4 {[%clk 0:01:37]} 21... Na6 {[%clk 0:01:58.1]} 22. Nb1 {[%clk 0:01:07.4]}
22... cxd5 {[%clk 0:01:49.7]} 23. exd5 {[%clk 0:01:04.4]} 23... Bb5 {[%clk
0:01:47.5]} 24. Rf4 {[%clk 0:00:42.9]} 24... Re8 {[%clk 0:01:45.1]} 25. c4
{[%clk 0:00:42.3]} 25... Bxc4 {[%clk 0:01:38.2]} 26. Rxc4 {[%clk 0:00:38.2]}
26... Rxe3 {[%clk 0:01:38.4]} 27. Qf2 {[%clk 0:00:33.3]} 27... Qe8 {[%clk
0:01:17.4]} 28. Nf4 {[%clk 0:00:23.4]} 28... Rg3 {[%clk 0:01:15.7]} 29. Re1
{[%clk 0:00:21.2]} 29... Qf8 {[%clk 0:01:07.8]} 30. Rce4 {[%clk 0:00:20.4]}
30... Nc7 {[%clk 0:00:59.2]} 31. Nxg6 {[%clk 0:00:08.3]} 31... fxg6 {[%clk
0:00:55.4]} 32. Rf4 {[%clk 0:00:08.8]} 32... Qd8 {[%clk 0:00:50.6]} 33. Rxh4
{[%clk 0:00:06.1]} 33... Qxg5 {[%clk 0:00:47.8]} 34. Rc4 {[%clk 0:00:06.1]}
34... Nxd5 {[%clk 0:00:40]} 35. Re8+ {[%clk 0:00:06]} 35... Kh7 {[%clk
0:00:39.9]} 36. Qf7 {[%clk 0:00:03.5]} 36... Rxg2+ {[%clk 0:00:37.7]} 37. Kf1
{[%clk 0:00:04]} 37... Rg1+ {[%clk 0:00:37.1]} 38. Ke2 {[%clk 0:00:04]} 38...
Qg2+ {[%clk 0:00:28.2]} 39. Qf2 {[%clk 0:00:01.6]} 39... Qxf2+ {[%clk
0:00:20.5]} 40. Kxf2 {[%clk 0:00:02.5]} 40... Rxb1 {[%clk 0:00:20.2]} 41. Rcxc8
{[%clk 0:00:03.1]} 41... Rxc8 {[%clk 0:00:20]} 42. Rxc8 {[%clk 0:00:04]} 42...
Rxb4 {[%clk 0:00:20.2]} 0-1